[Event "1er Festival international de Cassis 2022"]
[Site "Cassis"]
[Date "2022.05.27"]
[Round "3.5"]
[White "Movsziszian, Karen"]
[Black "Kuhn, Clement"]
[Result "0-1"]
[TimeControl "1 h 30 + 30 s"]
[WhiteElo "2467"]
[BlackElo "2280"]

1. g3 {[%clk 01:30:58]} {[%emt 00:00:02]} c5 {[%clk 01:30:56]} {[%emt
00:00:05]} 2. Bg2 {[%clk 01:31:14]} {[%emt 00:00:13]} Nc6 {[%clk 01:31:20]}
{[%emt 00:00:05]} 3. e4 {[%clk 01:31:08]} {[%emt 00:00:37]} g6 {[%clk
01:31:45]} {[%emt 00:00:05]} 4. d3 {[%clk 01:30:19]} {[%emt 00:01:19]} Bg7
{[%clk 01:32:10]} {[%emt 00:00:05]} 5. f4 {[%clk 01:30:29]} {[%emt 00:00:21]}
d6 {[%clk 01:32:16]} {[%emt 00:00:24]} 6. Nh3 {[%clk 01:30:00]} {[%emt
00:00:59]} e6 {[%clk 01:28:08]} {[%emt 00:04:38]} 7. O-O {[%clk 01:25:37]}
{[%emt 00:04:53]} Nge7 {[%clk 01:28:11]} {[%emt 00:00:26]} 8. c3 {[%clk
01:26:03]} {[%emt 00:00:04]} O-O {[%clk 01:28:33]} {[%emt 00:00:08]} 9. Nd2
{[%clk 01:24:21]} {[%emt 00:02:12]} Rb8 {[%clk 01:16:06]} {[%emt 00:12:57]} 10.
Nf3 {[%clk 01:22:15]} {[%emt 00:02:36]} b5 {[%clk 01:08:28]} {[%emt 00:08:09]}
11. a3 {[%clk 01:07:02]} {[%emt 00:15:43]} h6 {[%clk 01:03:20]} {[%emt
00:05:38]} 12. Be3 {[%clk 01:05:04]} {[%emt 00:02:27]} c4 {[%clk 00:59:26]}
{[%emt 00:04:24]} 13. d4 {[%clk 01:04:07]} {[%emt 00:01:28]} f5 {[%clk
00:47:57]} {[%emt 00:12:00]} 14. Nf2 {[%clk 00:59:37]} {[%emt 00:04:59]} fxe4
{[%clk 00:47:42]} {[%emt 00:00:46]} 15. Nxe4 {[%clk 01:00:03]} {[%emt
00:00:03]} Nd5 {[%clk 00:47:26]} {[%emt 00:00:46]} 16. Bf2 {[%clk 01:00:03]}
{[%emt 00:00:29]} Nce7 {[%clk 00:46:09]} {[%emt 00:01:47]} 17. Qc2 {[%clk
00:58:01]} {[%emt 00:02:31]} a5 {[%clk 00:44:18]} {[%emt 00:02:21]} 18. Rfe1
{[%clk 00:58:04]} {[%emt 00:00:28]} Nf5 {[%clk 00:41:54]} {[%emt 00:02:55]} 19.
Re2 {[%clk 00:55:33]} {[%emt 00:03:00]} Qc7 {[%clk 00:41:43]} {[%emt 00:00:41]}
20. Ned2 {[%clk 00:45:42]} {[%emt 00:10:20]} Kh7 {[%clk 00:37:06]} {[%emt
00:05:08]} 21. h4 {[%clk 00:45:33]} {[%emt 00:00:39]} Kg8 {[%clk 00:29:06]}
{[%emt 00:08:30]} 22. Rae1 {[%clk 00:45:36]} {[%emt 00:00:27]} b4 {[%clk
00:28:28]} {[%emt 00:01:09]} 23. Nh2 {[%clk 00:41:48]} {[%emt 00:04:17]} bxc3
{[%clk 00:22:30]} {[%emt 00:06:28]} 24. bxc3 {[%clk 00:42:16]} {[%emt
00:00:02]} Nfe7 {[%clk 00:21:21]} {[%emt 00:01:39]} 25. Nhf1 {[%clk 00:42:02]}
{[%emt 00:00:44]} Bf6 {[%clk 00:14:08]} {[%emt 00:07:44]} 26. Ne3 {[%clk
00:41:10]} {[%emt 00:01:21]} Kg7 {[%clk 00:13:40]} {[%emt 00:00:58]} 27. Bf1
{[%clk 00:38:24]} {[%emt 00:03:16]} Nxe3 {[%clk 00:10:42]} {[%emt 00:03:29]} 28.
Rxe3 {[%clk 00:38:51]} {[%emt 00:00:03]} Nf5 {[%clk 00:10:11]} {[%emt
00:01:01]} 29. R3e2 {[%clk 00:36:13]} {[%emt 00:03:07]} h5 {[%clk 00:09:35]}
{[%emt 00:01:06]} 30. Bg2 {[%clk 00:28:26]} {[%emt 00:08:17]} d5 {[%clk
00:08:57]} {[%emt 00:01:08]} 31. Rb1 {[%clk 00:26:49]} {[%emt 00:02:06]} Bd7
{[%clk 00:09:04]} {[%emt 00:00:23]} 32. Nf3 {[%clk 00:26:49]} {[%emt 00:00:29]}
Qd6 {[%clk 00:07:39]} {[%emt 00:01:56]} 33. Ree1 {[%clk 00:21:51]} {[%emt
00:05:29]} Qxa3 {[%clk 00:06:18]} {[%emt 00:01:54]} 34. Ra1 {[%clk 00:21:57]}
{[%emt 00:00:25]} Qb3 {[%clk 00:06:31]} {[%emt 00:00:18]} 35. Qd2 {[%clk
00:21:43]} {[%emt 00:00:44]} a4 {[%clk 00:06:16]} {[%emt 00:00:45]} 36. Ne5
{[%clk 00:22:07]} {[%emt 00:00:05]} Bxe5 {[%clk 00:06:33]} {[%emt 00:00:13]} 37.
dxe5 {[%clk 00:22:12]} {[%emt 00:00:25]} Qb2 {[%clk 00:06:26]} {[%emt
00:00:38]} 38. Red1 {[%clk 00:20:41]} {[%emt 00:02:01]} Qxd2 {[%clk 00:06:15]}
{[%emt 00:00:40]} 39. Rxd2 {[%clk 00:21:10]} Rb3 {[%clk 00:06:32]} {[%emt
00:00:13]} 40. Rc2 {[%clk 00:20:06]} {[%emt 00:01:34]} Rfb8 {[%clk 00:06:21]}
{[%emt 00:00:40]} 41. Rcc1 {[%clk 00:20:17]} {[%emt 00:00:20]} Rb2 {[%clk
00:05:53]} {[%emt 00:00:58]} 42. Bh3 {[%emt 00:00:44]} R8b3 {[%clk 00:05:44]}
43. Bxf5 {[%clk 00:19:00]} {[%emt 00:02:12]} gxf5 {[%clk 00:06:13]} 44. Bc5
{[%clk 00:18:42]} {[%emt 00:00:48]} Bc6 {[%clk 00:06:37]} {[%emt 00:00:06]} 45.
Kf1 {[%clk 00:18:02]} {[%emt 00:01:11]} Kf7 {[%clk 00:05:38]} {[%emt 00:01:29]}
46. Ra3 {[%clk 00:17:44]} {[%emt 00:00:46]} Ke8 {[%clk 00:04:28]} {[%emt
00:01:41]} 47. Rca1 {[%clk 00:18:12]} {[%emt 00:00:02]} Rc2 {[%clk 00:04:14]}
{[%emt 00:00:44]} 48. Bd4 {[%clk 00:16:10]} {[%emt 00:02:33]} Rbb2 {[%clk
00:04:06]} {[%emt 00:00:37]} 49. Re1 {[%clk 00:16:28]} {[%emt 00:00:11]} Rh2
{[%clk 00:03:52]} {[%emt 00:00:44]} 50. Kg1 {[%clk 00:14:34]} {[%emt 00:02:25]}
Rhg2+ {[%clk 00:04:01]} {[%emt 00:00:21]} 51. Kf1 {[%clk 00:15:00]} {[%emt
00:00:04]} Rxg3 {[%clk 00:04:11]} {[%emt 00:00:20]} 52. Re2 {[%clk 00:15:12]}
{[%emt 00:00:18]} Rxe2 {[%clk 00:03:54]} {[%emt 00:00:46]} 53. Kxe2 {[%clk
00:15:41]} Rg4 {[%clk 00:04:08]} {[%emt 00:00:15]} 54. Ke3 {[%clk 00:15:57]}
{[%emt 00:00:15]} Rxh4 {[%clk 00:04:33]} {[%emt 00:00:06]} 55. Ra1 {[%clk
00:16:20]} {[%emt 00:00:07]} Rh2 {[%clk 00:04:29]} {[%emt 00:00:34]} 56. Bb6
{[%clk 00:15:30]} {[%emt 00:01:20]} h4 {[%clk 00:03:30]} {[%emt 00:01:29]} 57.
Ba5 {[%clk 00:15:26]} {[%emt 00:00:33]} h3 {[%clk 00:03:30]} {[%emt 00:00:30]}
58. Kd4 {[%clk 00:15:40]} {[%emt 00:00:17]} Rg2 {[%clk 00:03:41]} {[%emt
00:00:20]} 59. Kc5 {[%clk 00:16:01]} {[%emt 00:00:09]} h2 {[%clk 00:03:55]}
{[%emt 00:00:16]} 60. Kd4 {[%emt 00:02:16]} 0-1

[Event "1er Festival international de Cassis 2022"]
[Site "Cassis"]
[Date "2022.05.27"]
[Round "3.6"]
[White "Philippe, Guillaume"]
[Black "Bui, Christopher"]
[Result "1-0"]
[TimeControl "1 h 30 + 30 s"]
[WhiteElo "2405"]
[BlackElo "1882"]

1. Nf3 {[%clk 01:29:42]} {[%emt 00:01:11]} c5 {[%clk 01:30:45]} {[%emt
00:00:22]} 2. b3 {[%clk 01:29:21]} {[%emt 00:00:51]} Nc6 {[%clk 01:24:43]}
{[%emt 00:06:32]} 3. Bb2 {[%clk 01:28:58]} {[%emt 00:00:52]} d6 {[%clk
01:25:02]} {[%emt 00:00:12]} 4. g3 {[%clk 01:28:17]} {[%emt 00:01:11]} e5
{[%clk 01:25:03]} {[%emt 00:00:29]} 5. d3 {[%clk 01:28:37]} {[%emt 00:00:10]}
Nge7 {[%clk 01:25:19]} {[%emt 00:00:14]} 6. Bg2 {[%clk 01:28:50]} {[%emt
00:00:17]} g6 {[%clk 01:25:39]} {[%emt 00:00:11]} 7. O-O {[%clk 01:27:41]}
{[%emt 00:01:39]} Bg7 {[%clk 01:26:05]} {[%emt 00:00:04]} 8. c4 {[%clk
01:27:57]} {[%emt 00:00:14]} O-O {[%clk 01:26:25]} {[%emt 00:00:10]} 9. Nc3
{[%clk 01:28:07]} {[%emt 00:00:20]} h6 {[%clk 01:26:11]} {[%emt 00:00:44]} 10.
Ne1 {[%clk 01:23:52]} {[%emt 00:04:45]} Be6 {[%clk 01:26:19]} {[%emt 00:00:22]}
11. Nc2 {[%clk 01:24:05]} {[%emt 00:00:17]} d5 {[%clk 01:26:41]} {[%emt
00:00:09]} 12. cxd5 {[%clk 01:19:42]} {[%emt 00:04:53]} Nxd5 {[%clk 01:27:05]}
{[%emt 00:00:06]} 13. Ne4 {[%clk 01:17:08]} {[%emt 00:03:04]} b6 {[%clk
01:22:51]} {[%emt 00:04:45]} 14. a3 {[%clk 01:17:11]} {[%emt 00:00:27]} a5
{[%clk 01:03:48]} {[%emt 00:19:33]} 15. Nd2 {[%clk 01:14:06]} {[%emt 00:03:34]}
Ra7 {[%clk 01:01:56]} {[%emt 00:02:22]} 16. a4 {[%clk 01:13:48]} {[%emt
00:00:49]} f5 {[%clk 00:58:12]} {[%emt 00:04:13]} 17. Na3 {[%clk 01:12:44]}
{[%emt 00:01:34]} Kh7 {[%clk 00:52:37]} {[%emt 00:06:06]} 18. Nac4 {[%clk
01:08:39]} {[%emt 00:04:35]} Bg8 {[%clk 00:45:51]} {[%emt 00:07:15]} 19. Re1
{[%clk 01:07:36]} {[%emt 00:01:33]} Ndb4 {[%clk 00:38:53]} {[%emt 00:07:28]} 20.
Rb1 {[%clk 01:00:36]} {[%emt 00:07:30]} Rd7 {[%clk 00:36:19]} {[%emt 00:03:04]}
21. f3 {[%clk 00:46:47]} {[%emt 00:14:19]} Nd4 {[%clk 00:31:05]} {[%emt
00:05:44]} 22. Rf1 {[%clk 00:43:47]} {[%emt 00:03:29]} Re8 {[%clk 00:29:49]}
{[%emt 00:01:47]} 23. Rf2 {[%clk 00:42:48]} {[%emt 00:01:29]} h5 {[%clk
00:26:20]} {[%emt 00:03:59]} 24. Qf1 {[%clk 00:33:14]} {[%emt 00:10:04]} Ndc2
{[%clk 00:22:48]} {[%emt 00:04:03]} 25. f4 {[%clk 00:29:30]} {[%emt 00:04:14]}
e4 {[%clk 00:12:38]} {[%emt 00:10:39]} 26. Bxg7 {[%clk 00:29:30]} {[%emt
00:00:30]} e3 {[%clk 00:12:18]} {[%emt 00:00:50]} 27. Be5 {[%clk 00:28:21]}
{[%emt 00:01:39]} exf2+ {[%clk 00:12:26]} {[%emt 00:00:23]} 28. Qxf2 {[%clk
00:28:46]} {[%emt 00:00:05]} Nd4 {[%clk 00:10:23]} {[%emt 00:02:32]} 29. Nf3
{[%clk 00:28:33]} {[%emt 00:00:43]} Nxf3+ {[%clk 00:08:33]} {[%emt 00:02:21]}
30. Bxf3 {[%clk 00:28:41]} {[%emt 00:00:21]} Bd5 {[%clk 00:08:30]} {[%emt
00:00:33]} 31. Bxd5 {[%clk 00:28:48]} {[%emt 00:00:24]} Rxd5 {[%clk 00:08:33]}
{[%emt 00:00:27]} 32. Qf3 {[%clk 00:29:06]} {[%emt 00:00:11]} Re6 {[%clk
00:06:25]} {[%emt 00:02:39]} 33. h3 {[%clk 00:28:36]} {[%emt 00:01:00]} Rd7
{[%clk 00:04:15]} {[%emt 00:02:39]} 34. g4 {[%clk 00:22:31]} {[%emt 00:06:39]}
hxg4 {[%clk 00:02:33]} {[%emt 00:02:12]} 35. hxg4 {[%clk 00:21:50]} {[%emt
00:01:11]} Qh4 {[%clk 00:02:53]} {[%emt 00:00:10]} 36. g5 {[%clk 00:21:45]}
{[%emt 00:00:35]} Kg8 {[%clk 00:01:10]} {[%emt 00:02:13]} 37. Kg2 {[%clk
00:19:58]} {[%emt 00:02:17]} Qg4+ {[%clk 00:01:08]} {[%emt 00:00:32]} 38. Qxg4
{[%clk 00:20:00]} {[%emt 00:00:27]} fxg4 {[%clk 00:01:35]} {[%emt 00:00:04]} 39.
Kg3 {[%clk 00:19:39]} {[%emt 00:00:50]} Rh7 {[%clk 00:00:43]} {[%emt 00:01:23]}
40. Kxg4 {[%clk 00:19:36]} {[%emt 00:00:33]} Nc6 {[%clk 00:00:52]} {[%emt
00:00:21]} 41. Kf3 {[%clk 00:16:48]} {[%emt 00:03:18]} Rh2 {[%clk 00:00:55]}
{[%emt 00:00:26]} 42. e3 {[%clk 00:16:32]} {[%emt 00:00:46]} Nb4 {[%clk
00:00:38]} {[%emt 00:00:48]} 43. Ke4 {[%clk 00:16:19]} {[%emt 00:00:43]} Rh4
{[%clk 00:00:44]} {[%emt 00:00:24]} 44. d4 {[%clk 00:15:12]} {[%emt 00:01:37]}
cxd4 {[%clk 00:00:49]} {[%emt 00:00:25]} 45. Kxd4 {[%clk 00:15:21]} {[%emt
00:00:20]} Kf7 {[%clk 00:00:39]} {[%emt 00:00:41]} 46. Ke4 {[%clk 00:15:31]}
{[%emt 00:00:20]} Na2 {[%clk 00:00:40]} {[%emt 00:00:29]} 47. Re1 {[%clk
00:15:15]} {[%emt 00:00:46]} Rh2 {[%clk 00:00:36]} {[%emt 00:00:34]} 48. Kf3
{[%clk 00:14:30]} {[%emt 00:01:14]} Ke7 {[%clk 00:00:35]} {[%emt 00:00:32]} 49.
Rd1 {[%clk 00:14:15]} {[%emt 00:00:43]} Kf7 {[%clk 00:00:31]} {[%emt 00:00:36]}
50. Bf6 {[%clk 00:13:51]} {[%emt 00:00:54]} Rh3+ {[%clk 00:00:34]} {[%emt
00:00:26]} 51. Kf2 {[%clk 00:13:53]} {[%emt 00:00:28]} Nb4 {[%clk 00:00:40]}
{[%emt 00:00:25]} 52. Rd7+ {[%clk 00:14:02]} {[%emt 00:00:22]} Kf8 {[%clk
00:00:46]} {[%emt 00:00:24]} 53. Ne5 {[%clk 00:13:40]} {[%emt 00:00:52]} Nc6
{[%clk 00:00:55]} {[%emt 00:00:21]} 54. Nxg6+ {[%clk 00:12:40]} {[%emt
00:01:29]} Ke8 {[%clk 00:01:20]} {[%emt 00:00:06]} 55. Rd3 {[%clk 00:13:03]}
{[%emt 00:00:07]} Kf7 {[%clk 00:01:22]} {[%emt 00:00:28]} 56. f5 {[%clk
00:12:20]} {[%emt 00:01:13]} 1-0

[Event "1er Festival international de Cassis 2022"]
[Site "Cassis"]
[Date "2022.05.27"]
[Round "3.7"]
[White "Etienne, Benjamin"]
[Black "Flear, Glenn C"]
[Result "0-1"]
[TimeControl "1 h 30 + 30 s"]
[WhiteElo "1568"]
[BlackElo "2418"]

1. e4 {[%clk 01:29:56]} {[%emt 00:01:03]} e5 {[%clk 01:30:21]} {[%emt
00:00:39]} 2. Nc3 {[%clk 01:29:45]} {[%emt 00:00:42]} Nf6 {[%clk 01:30:31]}
{[%emt 00:00:20]} 3. f4 {[%clk 01:29:59]} {[%emt 00:00:17]} d5 {[%clk
01:30:41]} {[%emt 00:00:19]} 4. fxe5 {[%clk 01:30:08]} {[%emt 00:00:22]} Nxe4
{[%clk 01:31:02]} {[%emt 00:00:08]} 5. Qf3 {[%clk 01:30:01]} {[%emt 00:00:37]}
Nxc3 {[%clk 01:25:10]} {[%emt 00:06:21]} 6. dxc3 {[%clk 01:30:17]} {[%emt
00:00:14]} Be6 {[%clk 01:18:46]} {[%emt 00:06:54]} 7. Bf4 {[%clk 01:24:32]}
{[%emt 00:06:15]} Qd7 {[%clk 01:17:12]} {[%emt 00:02:05]} 8. Qg3 {[%clk
01:19:02]} {[%emt 00:06:00]} c5 {[%clk 01:13:04]} {[%emt 00:04:37]} 9. Nf3
{[%clk 01:11:59]} {[%emt 00:07:34]} h6 {[%clk 01:12:24]} {[%emt 00:01:10]} 10.
h3 {[%clk 01:03:40]} {[%emt 00:08:49]} Qa4 {[%clk 01:10:44]} {[%emt 00:02:09]}
11. Rc1 {[%clk 00:40:32]} {[%emt 00:23:39]} Qxa2 {[%clk 01:01:52]} {[%emt
00:09:21]} 12. Bb5+ {[%clk 00:39:28]} {[%emt 00:01:33]} Nc6 {[%clk 01:01:59]}
{[%emt 00:00:23]} 13. b3 {[%clk 00:33:06]} {[%emt 00:06:53]} Qa5 {[%clk
01:00:30]} {[%emt 00:01:59]} 14. Bxc6+ {[%clk 00:33:09]} {[%emt 00:00:28]} bxc6
{[%clk 01:00:50]} {[%emt 00:00:09]} 15. O-O {[%clk 00:32:28]} {[%emt 00:01:12]}
g6 {[%clk 00:42:42]} {[%emt 00:18:38]} 16. Bd2 {[%clk 00:25:30]} {[%emt
00:07:27]} Qc7 {[%clk 00:39:16]} {[%emt 00:03:55]} 17. Nh4 {[%clk 00:20:29]}
{[%emt 00:05:30]} Be7 {[%clk 00:34:15]} {[%emt 00:05:33]} 18. Nf3 {[%clk
00:19:34]} {[%emt 00:01:25]} g5 {[%clk 00:27:59]} {[%emt 00:06:46]} 19. Qe1
{[%clk 00:17:11]} {[%emt 00:02:50]} Rg8 {[%clk 00:19:55]} {[%emt 00:08:37]} 20.
g4 {[%clk 00:12:15]} {[%emt 00:05:27]} h5 {[%clk 00:19:15]} {[%emt 00:01:10]}
21. Nh2 {[%clk 00:11:54]} {[%emt 00:00:51]} Rh8 {[%clk 00:15:50]} {[%emt
00:03:55]} 22. Kg2 {[%clk 00:09:57]} {[%emt 00:02:27]} O-O-O {[%clk 00:14:32]}
{[%emt 00:01:48]} 23. Ra1 {[%clk 00:09:03]} {[%emt 00:01:24]} hxg4 {[%clk
00:12:40]} {[%emt 00:02:22]} 24. Nxg4 {[%clk 00:09:18]} {[%emt 00:00:14]} Rh4
{[%clk 00:11:55]} {[%emt 00:01:14]} 25. Qe2 {[%clk 00:06:47]} {[%emt 00:03:05]}
Rdh8 {[%clk 00:11:39]} {[%emt 00:00:46]} 26. Rh1 {[%clk 00:06:06]} {[%emt
00:01:10]} d4 {[%clk 00:09:13]} {[%emt 00:02:58]} 27. c4 {[%clk 00:06:01]}
{[%emt 00:00:35]} Qd7 {[%clk 00:09:15]} {[%emt 00:00:28]} 28. Kg3 {[%clk
00:02:02]} {[%emt 00:04:30]} Bxg4 {[%clk 00:09:30]} {[%emt 00:00:14]} 29. hxg4
{[%clk 00:02:12]} {[%emt 00:00:20]} Rxh1 {[%clk 00:09:53]} {[%emt 00:00:07]} 30.
Rxh1 {[%clk 00:01:51]} {[%emt 00:00:52]} Rxh1 {[%clk 00:10:17]} {[%emt
00:00:06]} 0-1

[Event "1er Festival international de Cassis 2022"]
[Site "Cassis"]
[Date "2022.05.27"]
[Round "3.8"]
[White "Acikgoz, Tuncay"]
[Black "Derige Kane, Yan"]
[Result "0-1"]
[TimeControl "1 h 30 + 30 s"]
[WhiteElo "1874"]
[BlackElo "2161"]

1. d4 {[%clk 01:15:40]} {[%emt 00:15:19]} d5 {[%clk 01:30:04]} {[%emt
00:00:55]} 2. Nf3 {[%clk 01:16:04]} {[%emt 00:00:07]} Nf6 {[%clk 01:30:27]}
{[%emt 00:00:07]} 3. c4 {[%clk 01:16:31]} {[%emt 00:00:04]} e6 {[%clk
01:30:51]} {[%emt 00:00:06]} 4. g3 {[%clk 01:16:58]} {[%emt 00:00:03]} Be7
{[%clk 01:30:15]} {[%emt 00:01:05]} 5. Bg2 {[%clk 01:15:38]} {[%emt 00:01:51]}
O-O {[%clk 01:30:29]} {[%emt 00:00:15]} 6. O-O {[%clk 01:16:03]} {[%emt
00:00:05]} c6 {[%clk 01:27:50]} {[%emt 00:03:10]} 7. Nc3 {[%clk 01:16:28]}
{[%emt 00:00:05]} b6 {[%clk 01:27:17]} {[%emt 00:01:03]} 8. Ne5 {[%clk
01:14:11]} {[%emt 00:02:47]} Bb7 {[%clk 01:25:19]} {[%emt 00:02:28]} 9. Qa4
{[%clk 01:14:00]} {[%emt 00:00:41]} a6 {[%clk 01:19:01]} {[%emt 00:06:48]} 10.
Rd1 {[%clk 01:06:54]} {[%emt 00:07:35]} b5 {[%clk 01:15:26]} {[%emt 00:04:05]}
11. Qb3 {[%clk 01:00:10]} {[%emt 00:07:15]} Nbd7 {[%clk 01:09:29]} {[%emt
00:06:26]} 12. Nxd7 {[%clk 00:50:50]} {[%emt 00:09:50]} Nxd7 {[%clk 01:07:47]}
{[%emt 00:02:11]} 13. cxd5 {[%clk 00:50:30]} {[%emt 00:00:51]} cxd5 {[%clk
01:07:50]} {[%emt 00:00:26]} 14. e4 {[%clk 00:50:37]} {[%emt 00:00:23]} dxe4
{[%clk 01:08:03]} {[%emt 00:00:16]} 15. Nxe4 {[%clk 00:51:03]} {[%emt
00:00:06]} Bd5 {[%clk 01:08:15]} {[%emt 00:00:18]} 16. Qe3 {[%clk 00:49:54]}
{[%emt 00:01:38]} Qc7 {[%clk 01:05:56]} {[%emt 00:02:49]} 17. Bd2 {[%clk
00:48:17]} {[%emt 00:02:07]} Qb7 {[%clk 01:04:00]} {[%emt 00:02:26]} 18. Bf3
{[%clk 00:27:31]} {[%emt 00:21:17]} h6 {[%clk 00:59:41]} {[%emt 00:04:49]} 19.
Be1 {[%clk 00:23:24]} {[%emt 00:04:36]} Rac8 {[%clk 00:57:38]} {[%emt
00:02:33]} 20. Rac1 {[%clk 00:22:49]} {[%emt 00:01:05]} Nb6 {[%clk 00:32:31]}
{[%emt 00:25:38]} 21. b3 {[%clk 00:18:18]} {[%emt 00:05:01]} Nd7 {[%clk
00:10:53]} {[%emt 00:22:07]} 22. Nc5 {[%clk 00:13:33]} {[%emt 00:05:15]} Nxc5
{[%clk 00:07:41]} {[%emt 00:03:43]} 23. Bxd5 {[%clk 00:13:49]} {[%emt
00:00:14]} Qxd5 {[%clk 00:08:00]} {[%emt 00:00:10]} 24. dxc5 {[%clk 00:13:54]}
{[%emt 00:00:26]} Bxc5 {[%clk 00:07:03]} {[%emt 00:01:27]} 25. Qe2 {[%clk
00:03:58]} {[%emt 00:10:28]} Qf5 {[%clk 00:06:34]} {[%emt 00:00:59]} 26. g4
{[%clk 00:01:52]} {[%emt 00:02:37]} Qg6 {[%clk 00:05:00]} {[%emt 00:02:04]} 27.
h4 {[%clk 00:01:43]} {[%emt 00:00:39]} Qf6 {[%clk 00:04:53]} {[%emt 00:00:35]}
28. h5 {[%clk 00:01:03]} {[%emt 00:01:11]} Bd4 {[%clk 00:02:52]} {[%emt
00:02:31]} 29. Kg2 {[%clk 00:01:12]} {[%emt 00:00:21]} e5 {[%clk 00:02:44]}
{[%emt 00:00:39]} 30. Qe4 {[%clk 00:01:11]} {[%emt 00:00:31]} Qe6 {[%clk
00:02:28]} {[%emt 00:00:46]} 31. f3 {[%clk 00:01:13]} {[%emt 00:00:27]} Qd6
{[%clk 00:02:35]} {[%emt 00:00:24]} 32. Bd2 {[%clk 00:00:45]} {[%emt 00:00:59]}
Qa3 {[%clk 00:01:22]} {[%emt 00:01:43]} 33. g5 {[%clk 00:00:41]} {[%emt
00:00:34]} Rxc1 {[%clk 00:00:36]} {[%emt 00:01:16]} 34. Rxc1 {[%clk 00:00:49]}
{[%emt 00:00:22]} Qxa2 {[%clk 00:01:00]} {[%emt 00:00:06]} 35. Rc2 {[%clk
00:01:17]} {[%emt 00:00:03]} Qb1 {[%clk 00:01:00]} {[%emt 00:00:30]} 36. gxh6
{[%clk 00:00:53]} {[%emt 00:00:54]} Qg1+ {[%clk 00:01:13]} {[%emt 00:00:17]} 37.
Kh3 {[%clk 00:01:21]} {[%emt 00:00:02]} Qh1+ {[%clk 00:01:14]} {[%emt
00:00:29]} 38. Kg3 {[%clk 00:01:20]} {[%emt 00:00:31]} Qg1+ {[%clk 00:01:05]}
{[%emt 00:00:39]} 39. Kh3 {[%clk 00:01:34]} {[%emt 00:00:16]} Qf1+ {[%clk
00:01:13]} {[%emt 00:00:22]} 40. Kh4 {[%clk 00:01:05]} {[%emt 00:00:59]} Qh1+
{[%clk 00:00:34]} {[%emt 00:01:09]} 41. Kg3 {[%clk 00:00:37]} {[%emt 00:00:58]}
f5 {[%clk 00:00:34]} {[%emt 00:00:30]} 42. h7+ {[%clk 00:00:32]} {[%emt
00:00:35]} Kh8 {[%clk 00:00:42]} {[%emt 00:00:21]} 43. Qe1 {[%clk 00:00:35]}
{[%emt 00:00:27]} f4+ {[%clk 00:00:46]} {[%emt 00:00:26]} 0-1

[Event "1er Festival international de Cassis 2022"]
[Site "Cassis"]
[Date "2022.05.27"]
[Round "4.1"]
[White "Philippe, Guillaume"]
[Black "Gozzoli, Yannick"]
[Result "1/2-1/2"]
[TimeControl "1 h 30 + 30 s"]
[WhiteElo "2405"]
[BlackElo "2591"]

1. e4 {[%clk 01:30:46]} {[%emt 00:00:14]} e5 {[%clk 01:30:14]} {[%emt
00:00:46]} 2. Nf3 {[%clk 01:30:46]} {[%emt 00:00:31]} Nc6 {[%clk 01:30:35]}
{[%emt 00:00:07]} 3. Bb5 {[%clk 01:30:51]} {[%emt 00:00:26]} a6 {[%clk
01:30:13]} {[%emt 00:00:51]} 4. Ba4 {[%clk 01:31:14]} {[%emt 00:00:07]} Nf6
{[%clk 01:29:04]} {[%emt 00:01:39]} 5. O-O {[%clk 01:31:30]} {[%emt 00:00:14]}
b5 {[%clk 01:28:03]} {[%emt 00:01:30]} 6. Bb3 {[%clk 01:31:48]} {[%emt
00:00:13]} Bb7 {[%clk 01:28:26]} {[%emt 00:00:06]} 7. Re1 {[%clk 01:29:02]}
{[%emt 00:03:16]} Bc5 {[%clk 01:20:48]} {[%emt 00:08:08]} 8. c3 {[%clk
01:28:14]} {[%emt 00:01:19]} d6 {[%clk 01:21:10]} {[%emt 00:00:07]} 9. d4
{[%clk 01:28:00]} {[%emt 00:00:44]} Bb6 {[%clk 01:21:35]} {[%emt 00:00:05]} 10.
a4 {[%clk 01:17:19]} {[%emt 00:11:12]} O-O {[%clk 01:17:51]} {[%emt 00:04:14]}
11. Na3 {[%clk 01:16:48]} {[%emt 00:01:01]} h6 {[%clk 01:11:32]} {[%emt
00:06:48]} 12. d5 {[%clk 01:06:06]} {[%emt 00:11:12]} Ne7 {[%clk 01:09:19]}
{[%emt 00:02:43]} 13. c4 {[%clk 01:03:49]} {[%emt 00:02:48]} Ng4 {[%clk
01:06:40]} {[%emt 00:03:08]} 14. Rf1 {[%clk 01:02:50]} {[%emt 00:01:29]} f5
{[%clk 01:07:04]} {[%emt 00:00:05]} 15. Bc2 {[%clk 01:01:47]} {[%emt 00:01:34]}
fxe4 {[%clk 00:49:34]} {[%emt 00:18:00]} 16. Bxe4 {[%clk 01:01:33]} {[%emt
00:00:45]} Nf5 {[%clk 00:47:26]} {[%emt 00:02:39]} 17. Nc2 {[%clk 00:52:00]}
{[%emt 00:10:03]} Qd7 {[%clk 00:41:02]} {[%emt 00:06:53]} 18. a5 {[%clk
00:46:34]} {[%emt 00:05:57]} Ba7 {[%clk 00:41:07]} {[%emt 00:00:24]} 19. b3
{[%clk 00:46:32]} {[%emt 00:00:32]} Nh4 {[%emt 00:15:34]} 20. Nce1 {[%clk
00:38:09]} Nf6 {[%clk 00:24:19]} {[%emt 00:11:06]} 21. Bc2 {[%clk 00:33:51]}
{[%emt 00:04:49]} Nxf3+ {[%clk 00:24:46]} {[%emt 00:00:04]} 22. Nxf3 {[%clk
00:34:02]} {[%emt 00:00:18]} c6 {[%clk 00:25:13]} {[%emt 00:00:03]} 23. dxc6
{[%clk 00:33:06]} {[%emt 00:01:27]} Bxc6 {[%clk 00:22:35]} {[%emt 00:03:08]} 24.
h3 {[%clk 00:29:02]} {[%emt 00:04:35]} Rad8 {[%clk 00:19:44]} {[%emt 00:03:20]}
25. Be3 {[%clk 00:27:39]} {[%emt 00:01:53]} Bxe3 {[%clk 00:15:47]} {[%emt
00:04:27]} 26. fxe3 {[%clk 00:28:05]} {[%emt 00:00:05]} Qa7 {[%clk 00:16:14]}
{[%emt 00:00:03]} 27. Qe1 {[%clk 00:27:51]} {[%emt 00:00:44]} bxc4 {[%clk
00:14:57]} {[%emt 00:01:46]} 28. bxc4 {[%clk 00:27:55]} {[%emt 00:00:27]} Qc5
{[%clk 00:14:06]} {[%emt 00:01:20]} 29. Rb1 {[%clk 00:26:02]} {[%emt 00:02:23]}
Be4 {[%clk 00:13:03]} {[%emt 00:01:32]} 30. Bxe4 {[%clk 00:24:50]} {[%emt
00:01:42]} Nxe4 {[%clk 00:13:29]} {[%emt 00:00:05]} 31. Rb7 {[%clk 00:24:58]}
{[%emt 00:00:21]} Qxc4 {[%clk 00:08:16]} {[%emt 00:05:43]} 32. Qh4 {[%clk
00:24:51]} {[%emt 00:00:37]} Nd2 {[%clk 00:08:28]} {[%emt 00:00:18]} 33. Qg4
{[%emt 00:02:53]} Qf4 34. Qxf4 {[%clk 00:22:27]} Nc4 {[%clk 00:08:57]} {[%emt
00:00:02]} 1/2-1/2